[Event "Early-Titled-Tuesday-Blitz-June-18-2024"]
[Site "Chess.com"]
[Date "2024.06.18"]
[Round "4"]
[White "ozates"]
[Black "vugarrasulov"]
[Result "0-1"]
[WhiteElo "2626"]
[BlackElo "2971"]
[TimeControl "180+1"]
[EndTime "8:41:19 PDT"]
[Termination "vugarrasulov won by resignation"]

1. e4 {[%clk 0:03:00.9]} 1... a6 {[%clk 0:03:00.9]} 2. d4 {[%clk 0:03:00.2]}
2... b5 {[%clk 0:03:01.5]} 3. Nf3 {[%clk 0:02:59.6]} 3... Bb7 {[%clk 0:03:01.6]}
4. Bd3 {[%clk 0:03:00]} 4... e6 {[%clk 0:03:01.1]} 5. O-O {[%clk 0:02:59.2]}
5... Nf6 {[%clk 0:02:59.6]} 6. Qe2 {[%clk 0:02:58]} 6... d5 {[%clk 0:02:59.6]}
7. e5 {[%clk 0:02:57.7]} 7... Nfd7 {[%clk 0:03:00.2]} 8. c3 {[%clk 0:02:55.7]}
8... c5 {[%clk 0:03:00.6]} 9. a4 {[%clk 0:02:55]} 9... c4 {[%clk 0:02:59.2]} 10.
Bc2 {[%clk 0:02:54.7]} 10... Be7 {[%clk 0:02:58.9]} 11. Bf4 {[%clk 0:02:49.7]}
11... Nc6 {[%clk 0:02:58.3]} 12. Nbd2 {[%clk 0:02:49.7]} 12... b4 {[%clk
0:02:57.4]} 13. g3 {[%clk 0:02:47.1]} 13... g5 {[%clk 0:02:54.2]} 14. Be3 {[%clk
0:02:45.8]} 14... h5 {[%clk 0:02:54.9]} 15. h3 {[%clk 0:02:40]} 15... a5 {[%clk
0:02:51.4]} 16. Nh2 {[%clk 0:02:37.9]} 16... b3 {[%clk 0:02:39]} 17. Bb1 {[%clk
0:02:36.8]} 17... Nb6 {[%clk 0:02:30.9]} 18. f4 {[%clk 0:02:36.9]} 18... gxf4
{[%clk 0:02:21.1]} 19. Rxf4 {[%clk 0:02:36.7]} 19... Qc7 {[%clk 0:01:59.6]} 20.
Qf2 {[%clk 0:02:25.9]} 20... O-O-O {[%clk 0:01:59.2]} 21. Rxf7 {[%clk
0:02:25.5]} 21... Rdf8 {[%clk 0:01:58.8]} 22. Bg6 {[%clk 0:02:24.3]} 22... Qd7
{[%clk 0:01:52.8]} 23. Bxh5 {[%clk 0:02:05.6]} 23... Rxf7 {[%clk 0:01:47.4]} 24.
Bxf7 {[%clk 0:02:05.3]} 24... Rxh3 {[%clk 0:01:42.2]} 25. Kg2 {[%clk 0:01:58.4]}
25... Rh8 {[%clk 0:01:41.3]} 26. Ng4 {[%clk 0:01:54]} 26... Nd8 {[%clk
0:01:40.4]} 27. Rf1 {[%clk 0:01:35.4]} 27... Rf8 {[%clk 0:01:37.4]} 28. Nh6
{[%clk 0:01:31.2]} 28... Nxa4 {[%clk 0:01:37.4]} 29. Qe2 {[%clk 0:01:05.9]}
29... Nb6 {[%clk 0:01:27.5]} 30. g4 {[%clk 0:00:56.2]} 30... Bh4 {[%clk
0:01:12.3]} 31. Bh5 {[%clk 0:00:51.1]} 31... Rxf1 {[%clk 0:01:08.8]} 32. Qxf1
{[%clk 0:00:49.5]} 32... Qg7 {[%clk 0:01:02.4]} 33. Nf3 {[%clk 0:00:36.9]} 33...
Be7 {[%clk 0:01:02.9]} 34. g5 {[%clk 0:00:27.4]} 34... a4 {[%clk 0:00:56.4]} 35.
g6 {[%clk 0:00:27.2]} 35... Nd7 {[%clk 0:00:50.7]} 36. Nh2 {[%clk 0:00:19]}
36... Nxe5 {[%clk 0:00:47.7]} 37. dxe5 {[%clk 0:00:14.8]} 37... d4+ {[%clk
0:00:47.7]} 38. Bf3 {[%clk 0:00:13.4]} 38... Qxg6+ {[%clk 0:00:47.2]} 39. N6g4
{[%clk 0:00:12.8]} 39... Bxf3+ {[%clk 0:00:42.5]} 40. Qxf3 {[%clk 0:00:13.2]}
40... dxe3 {[%clk 0:00:42.2]} 41. Qa8+ {[%clk 0:00:13.2]} 41... Kd7 {[%clk
0:00:41.3]} 42. Qxa4+ {[%clk 0:00:13.5]} 42... Nc6 {[%clk 0:00:41.3]} 43. Qxc4
{[%clk 0:00:13.5]} 43... Qc2+ {[%clk 0:00:40.1]} 44. Kf3 {[%clk 0:00:14.2]}
44... Qxb2 {[%clk 0:00:35.3]} 45. Qd3+ {[%clk 0:00:14.5]} 45... Kc7 {[%clk
0:00:34.9]} 46. Qxe3 {[%clk 0:00:14.9]} 46... Qc2 {[%clk 0:00:33.6]} 0-1

[Event "Early-Titled-Tuesday-Blitz-June-18-2024"]
[Site "Chess.com"]
[Date "2024.06.18"]
[Round "4"]
[White "DonCiao"]
[Black "sleeping_in_the_fire"]
[Result "0-1"]
[WhiteElo "2101"]
[BlackElo "2464"]
[TimeControl "180+1"]
[EndTime "8:41:19 PDT"]
[Termination "sleeping_in_the_fire won on time"]

1. c4 {[%clk 0:02:55.5]} 1... Nf6 {[%clk 0:02:59.4]} 2. g3 {[%clk 0:02:54.8]}
2... e5 {[%clk 0:02:59.1]} 3. Bg2 {[%clk 0:02:55.3]} 3... Nc6 {[%clk 0:02:59.2]}
4. Nc3 {[%clk 0:02:55.3]} 4... Bb4 {[%clk 0:02:59.3]} 5. Nd5 {[%clk 0:02:55.1]}
5... O-O {[%clk 0:02:59.9]} 6. Nf3 {[%clk 0:02:54.6]} 6... Bd6 {[%clk
0:02:54.3]} 7. O-O {[%clk 0:02:51.9]} 7... Nxd5 {[%clk 0:02:53.7]} 8. cxd5
{[%clk 0:02:50.9]} 8... Ne7 {[%clk 0:02:54.4]} 9. d4 {[%clk 0:02:49]} 9... e4
{[%clk 0:02:42.7]} 10. Ng5 {[%clk 0:02:45.2]} 10... f5 {[%clk 0:02:41.1]} 11. f3
{[%clk 0:02:22.7]} 11... exf3 {[%clk 0:02:04.3]} 12. Bxf3 {[%clk 0:01:54.7]}
12... b6 {[%clk 0:01:51.6]} 13. e4 {[%clk 0:01:54.3]} 13... fxe4 {[%clk
0:01:34.7]} 14. Bxe4 {[%clk 0:01:53.5]} 14... h6 {[%clk 0:01:06.6]} 15. Bh7+
{[%clk 0:01:20.6]} 15... Kh8 {[%clk 0:01:05.3]} 16. Nf7+ {[%clk 0:01:04.1]}
16... Rxf7 {[%clk 0:01:03.9]} 17. Rxf7 {[%clk 0:01:04.6]} 17... Kxh7 {[%clk
0:01:04.1]} 18. Qg4 {[%clk 0:00:29.3]} 18... Qg8 {[%clk 0:00:54.5]} 19. Qe4+
{[%clk 0:00:20.9]} 19... Kh8 {[%clk 0:00:31.3]} 20. Rxe7 {[%clk 0:00:18.8]}
20... Bxe7 {[%clk 0:00:31.7]} 21. Qxe7 {[%clk 0:00:19]} 21... Qxd5 {[%clk
0:00:30.2]} 22. Bxh6 {[%clk 0:00:14.9]} 22... gxh6 {[%clk 0:00:25.7]} 23. Qf8+
{[%clk 0:00:13.7]} 23... Kh7 {[%clk 0:00:25.7]} 24. Qe7+ {[%clk 0:00:12.6]}
24... Kg6 {[%clk 0:00:25.6]} 25. Qe8+ {[%clk 0:00:10.7]} 25... Kg5 {[%clk
0:00:20.4]} 26. Qe3+ {[%clk 0:00:08.1]} 26... Kh5 {[%clk 0:00:17.9]} 27. Qe2+
{[%clk 0:00:05.6]} 27... Kg6 {[%clk 0:00:13.4]} 28. Qe8+ {[%clk 0:00:05.4]}
28... Kg7 {[%clk 0:00:11.4]} 29. Qe7+ {[%clk 0:00:05.1]} 29... Qf7 {[%clk
0:00:11.9]} 30. Qe5+ {[%clk 0:00:05.1]} 30... Qf6 {[%clk 0:00:09.6]} 31. Qe4
{[%clk 0:00:04.9]} 31... Rb8 {[%clk 0:00:08.9]} 32. Rf1 {[%clk 0:00:04.7]} 32...
Bb7 {[%clk 0:00:04.9]} 33. Qg4+ {[%clk 0:00:02.4]} 33... Qg6 {[%clk 0:00:05.6]}
34. Qxd7+ {[%clk 0:00:01.8]} 34... Kh8 {[%clk 0:00:06.4]} 0-1

[Event "Early-Titled-Tuesday-Blitz-June-18-2024"]
[Site "Chess.com"]
[Date "2024.06.18"]
[Round "4"]
[White "IMJonathanCarlstedt"]
[Black "Aradhya2000"]
[Result "1/2-1/2"]
[WhiteElo "2591"]
[BlackElo "2815"]
[TimeControl "180+1"]
[EndTime "8:41:26 PDT"]
[Termination "Game drawn by repetition"]

1. c4 {[%clk 0:03:00.9]} 1... e5 {[%clk 0:02:59.5]} 2. g3 {[%clk 0:02:58.6]}
2... h5 {[%clk 0:02:57.2]} 3. h4 {[%clk 0:02:57]} 3... d5 {[%clk 0:02:54.8]} 4.
cxd5 {[%clk 0:02:55.7]} 4... Qxd5 {[%clk 0:02:54.5]} 5. Nf3 {[%clk 0:02:56.2]}
5... Nc6 {[%clk 0:02:53]} 6. Nc3 {[%clk 0:02:55.4]} 6... Qd8 {[%clk 0:02:53.6]}
7. Bg2 {[%clk 0:02:44]} 7... Nf6 {[%clk 0:02:54]} 8. O-O {[%clk 0:02:31.6]} 8...
Bg4 {[%clk 0:02:50.4]} 9. d4 {[%clk 0:02:21.3]} 9... exd4 {[%clk 0:02:48]} 10.
Nb5 {[%clk 0:02:19.9]} 10... Bc5 {[%clk 0:02:48]} 11. Bf4 {[%clk 0:02:18.9]}
11... Bb6 {[%clk 0:02:46.4]} 12. a4 {[%clk 0:02:06.4]} 12... a6 {[%clk
0:02:36.7]} 13. a5 {[%clk 0:02:06.3]} 13... axb5 {[%clk 0:02:36.6]} 14. axb6
{[%clk 0:02:05.9]} 14... Rxa1 {[%clk 0:02:36]} 15. bxc7 {[%clk 0:01:49.1]} 15...
Rxd1 {[%clk 0:02:30.4]} 16. cxd8=Q+ {[%clk 0:01:45.7]} 16... Kxd8 {[%clk
0:02:30.6]} 17. Rxd1 {[%clk 0:01:45.9]} 17... Bxf3 {[%clk 0:02:26.3]} 18. Bxf3
{[%clk 0:01:45.5]} 18... Kc8 {[%clk 0:02:26.9]} 19. Bg5 {[%clk 0:01:30.1]} 19...
Ng4 {[%clk 0:02:22.6]} 20. Bxc6 {[%clk 0:01:28.9]} 20... bxc6 {[%clk 0:02:21.7]}
21. Rxd4 {[%clk 0:01:29.5]} 21... Re8 {[%clk 0:02:18.4]} 22. f3 {[%clk
0:01:24.5]} 22... Ne3 {[%clk 0:02:17.4]} 23. Kf2 {[%clk 0:01:23.9]} 23... Nf5
{[%clk 0:02:11.1]} 24. Rd2 {[%clk 0:01:09.7]} 24... f6 {[%clk 0:02:09.9]} 25.
Bf4 {[%clk 0:01:07.3]} 25... Rd8 {[%clk 0:02:09.2]} 26. Rc2 {[%clk 0:00:52.4]}
26... Kb7 {[%clk 0:02:07.9]} 27. e4 {[%clk 0:00:45.9]} 27... Nd4 {[%clk
0:02:07.3]} 28. Rd2 {[%clk 0:00:39.4]} 28... Ne6 {[%clk 0:02:07.1]} 29. Rxd8
{[%clk 0:00:37]} 29... Nxd8 {[%clk 0:02:08]} 30. e5 {[%clk 0:00:36]} 30... f5
{[%clk 0:02:04.1]} 31. Be3 {[%clk 0:00:26.9]} 31... Ne6 {[%clk 0:02:03.7]} 32.
b4 {[%clk 0:00:25]} 32... Kc7 {[%clk 0:01:56.8]} 33. g4 {[%clk 0:00:22.9]} 33...
g6 {[%clk 0:01:56.7]} 34. gxf5 {[%clk 0:00:19.5]} 34... gxf5 {[%clk 0:01:56.6]}
35. Ke2 {[%clk 0:00:20.2]} 35... Kd7 {[%clk 0:01:55.1]} 36. Kd3 {[%clk
0:00:10.6]} 36... Ke7 {[%clk 0:01:32.3]} 37. Bd2 {[%clk 0:00:10]} 37... Kf7
{[%clk 0:01:32.1]} 38. Be3 {[%clk 0:00:09.6]} 38... Kg7 {[%clk 0:01:28]} 39. Bd2
{[%clk 0:00:10]} 39... Kg6 {[%clk 0:01:28.3]} 40. Bc1 {[%clk 0:00:09.2]} 40...
Kf7 {[%clk 0:01:23.1]} 41. Bd2 {[%clk 0:00:09.2]} 41... Ke7 {[%clk 0:01:21.6]}
42. Bc1 {[%clk 0:00:09.3]} 42... c5 {[%clk 0:01:12.2]} 43. bxc5 {[%clk
0:00:10.2]} 43... Nxc5+ {[%clk 0:01:11.9]} 44. Ke3 {[%clk 0:00:10.6]} 44... Ke6
{[%clk 0:01:06.3]} 45. Ba3 {[%clk 0:00:07.3]} 45... Nd7 {[%clk 0:01:01.1]} 46.
f4 {[%clk 0:00:05.8]} 46... Kd5 {[%clk 0:01:01.3]} 47. Kd3 {[%clk 0:00:06.1]}
47... Nb6 {[%clk 0:01:00.2]} 48. Bb4 {[%clk 0:00:05.9]} 48... Na4 {[%clk
0:00:57.4]} 49. Ba3 {[%clk 0:00:05.7]} 49... Nb6 {[%clk 0:00:53.8]} 50. Bb4
{[%clk 0:00:06.1]} 50... Nc4 {[%clk 0:00:52.3]} 51. Bf8 {[%clk 0:00:03.6]} 51...
Nb2+ {[%clk 0:00:51.4]} 52. Kc2 {[%clk 0:00:03.7]} 52... Na4 {[%clk 0:00:48.3]}
53. Kd3 {[%clk 0:00:04.4]} 53... Nb6 {[%clk 0:00:45.7]} 54. Bb4 {[%clk 0:00:04]}
1/2-1/2

[Event "Early-Titled-Tuesday-Blitz-June-18-2024"]
[Site "Chess.com"]
[Date "2024.06.18"]
[Round "4"]
[White "evgchess5"]
[Black "SuperPower2011"]
[Result "0-1"]
[WhiteElo "2920"]
[BlackElo "2722"]
[TimeControl "180+1"]
[EndTime "8:41:27 PDT"]
[Termination "SuperPower2011 won on time"]

1. e4 {[%clk 0:02:59]} 1... c5 {[%clk 0:02:59.8]} 2. Nf3 {[%clk 0:02:58.4]} 2...
d6 {[%clk 0:02:59.9]} 3. Bb5+ {[%clk 0:02:58.5]} 3... Bd7 {[%clk 0:02:59.8]} 4.
c4 {[%clk 0:02:58.7]} 4... e5 {[%clk 0:02:59.4]} 5. Bxd7+ {[%clk 0:02:57.4]}
5... Qxd7 {[%clk 0:02:56.9]} 6. Nc3 {[%clk 0:02:58]} 6... Nc6 {[%clk 0:02:57.1]}
7. d3 {[%clk 0:02:58]} 7... Nge7 {[%clk 0:02:49.5]} 8. O-O {[%clk 0:02:57.6]}
8... Ng6 {[%clk 0:02:50.2]} 9. a3 {[%clk 0:02:55.6]} 9... Be7 {[%clk 0:02:50.3]}
10. Rb1 {[%clk 0:02:54.3]} 10... O-O {[%clk 0:02:49.5]} 11. b4 {[%clk 0:02:54]}
11... f5 {[%clk 0:02:49.7]} 12. exf5 {[%clk 0:02:43.6]} 12... Rxf5 {[%clk
0:02:38]} 13. Be3 {[%clk 0:02:37.2]} 13... Raf8 {[%clk 0:02:35.7]} 14. Nd2
{[%clk 0:02:32.6]} 14... Nd4 {[%clk 0:02:09]} 15. Nce4 {[%clk 0:02:18.7]} 15...
Nf4 {[%clk 0:02:00.9]} 16. Bxf4 {[%clk 0:02:15.2]} 16... Rxf4 {[%clk 0:02:01.8]}
17. f3 {[%clk 0:02:01.6]} 17... Rh4 {[%clk 0:01:53.9]} 18. Rf2 {[%clk
0:01:36.7]} 18... b6 {[%clk 0:01:42.9]} 19. Nf1 {[%clk 0:01:27.4]} 19... Qf5
{[%clk 0:01:22.5]} 20. bxc5 {[%clk 0:01:01.1]} 20... dxc5 {[%clk 0:01:18.2]} 21.
Ne3 {[%clk 0:00:54.2]} 21... Qh5 {[%clk 0:01:15]} 22. Ng4 {[%clk 0:00:54.2]}
22... Qf5 {[%clk 0:00:36.2]} 23. Qe1 {[%clk 0:00:50]} 23... h5 {[%clk
0:00:24.5]} 24. Ne3 {[%clk 0:00:48.6]} 24... Qg6 {[%clk 0:00:22.5]} 25. Kh1
{[%clk 0:00:41.5]} 25... Bd8 {[%clk 0:00:20.6]} 26. Nd5 {[%clk 0:00:37.2]} 26...
Qe6 {[%clk 0:00:12.8]} 27. Qd2 {[%clk 0:00:36]} 27... Kh8 {[%clk 0:00:03.2]} 28.
Rbf1 {[%clk 0:00:35.5]} 28... Qg6 {[%clk 0:00:03.2]} 29. g3 {[%clk 0:00:31.8]}
29... Rh3 {[%clk 0:00:03.1]} 30. Kg2 {[%clk 0:00:31.9]} 30... Qe6 {[%clk
0:00:02.8]} 31. Qe3 {[%clk 0:00:26.9]} 31... h4 {[%clk 0:00:03.1]} 32. Ng5
{[%clk 0:00:13.3]} 32... Bxg5 {[%clk 0:00:02.4]} 33. Qxg5 {[%clk 0:00:13.9]}
33... hxg3 {[%clk 0:00:03]} 34. hxg3 {[%clk 0:00:14]} 34... Rh6 {[%clk
0:00:02.9]} 35. g4 {[%clk 0:00:12]} 35... Qd6 {[%clk 0:00:01.3]} 36. Ne3 {[%clk
0:00:10.1]} 36... Ne6 {[%clk 0:00:01.3]} 0-1

[Event "Early-Titled-Tuesday-Blitz-June-18-2024"]
[Site "Chess.com"]
[Date "2024.06.18"]
[Round "4"]
[White "Eliwood44"]
[Black "HamedWafa4"]
[Result "1-0"]
[WhiteElo "2488"]
[BlackElo "2672"]
[TimeControl "180+1"]
[EndTime "8:41:27 PDT"]
[Termination "Eliwood44 won on time"]

1. d4 {[%clk 0:03:00.9]} 1... Nf6 {[%clk 0:02:59.6]} 2. c4 {[%clk 0:03:00.5]}
2... e6 {[%clk 0:02:59.5]} 3. Nc3 {[%clk 0:03:00.5]} 3... Bb4 {[%clk 0:02:58.8]}
4. e3 {[%clk 0:03:00.1]} 4... O-O {[%clk 0:02:57.6]} 5. Bd3 {[%clk 0:02:59.9]}
5... c5 {[%clk 0:02:55.2]} 6. Ne2 {[%clk 0:02:59.4]} 6... cxd4 {[%clk
0:02:53.9]} 7. exd4 {[%clk 0:02:59.2]} 7... d5 {[%clk 0:02:54.4]} 8. a3 {[%clk
0:02:59.1]} 8... dxc4 {[%clk 0:02:51.7]} 9. Bxc4 {[%clk 0:02:57.5]} 9... Be7
{[%clk 0:02:51.6]} 10. O-O {[%clk 0:02:56.1]} 10... b6 {[%clk 0:02:49.7]} 11. d5
{[%clk 0:02:52.3]} 11... exd5 {[%clk 0:02:38.8]} 12. Nxd5 {[%clk 0:02:51.4]}
12... Be6 {[%clk 0:02:37.5]} 13. Nef4 {[%clk 0:02:47.5]} 13... Nxd5 {[%clk
0:02:35.3]} 14. Bxd5 {[%clk 0:02:39.8]} 14... Bxd5 {[%clk 0:02:31.1]} 15. Qxd5
{[%clk 0:02:39.3]} 15... Na6 {[%clk 0:02:23.5]} 16. Be3 {[%clk 0:02:32.9]} 16...
Bf6 {[%clk 0:02:16.9]} 17. Qb5 {[%clk 0:02:24]} 17... Nc7 {[%clk 0:02:16.4]} 18.
Qb3 {[%clk 0:02:24]} 18... Qe7 {[%clk 0:02:03.9]} 19. Rfe1 {[%clk 0:02:20.6]}
19... Rfe8 {[%clk 0:02:02.8]} 20. Bd2 {[%clk 0:02:13.8]} 20... Qd7 {[%clk
0:01:56.5]} 21. Rad1 {[%clk 0:02:09.1]} 21... Rad8 {[%clk 0:01:47.9]} 22. Rxe8+
{[%clk 0:02:06]} 22... Rxe8 {[%clk 0:01:45.6]} 23. Be3 {[%clk 0:02:04.3]} 23...
Qe7 {[%clk 0:01:41.5]} 24. Qa4 {[%clk 0:01:54.7]} 24... Rd8 {[%clk 0:01:23.4]}
25. Rxd8+ {[%clk 0:01:37.2]} 25... Qxd8 {[%clk 0:01:23.3]} 26. g3 {[%clk
0:01:34.3]} 26... Qa8 {[%clk 0:01:00.6]} 27. Qd7 {[%clk 0:01:30.7]} 27... Qd8
{[%clk 0:01:00.5]} 28. Qa4 {[%clk 0:01:28.2]} 28... Qb8 {[%clk 0:00:49.4]} 29.
b3 {[%clk 0:01:22]} 29... g6 {[%clk 0:00:39.5]} 30. h4 {[%clk 0:01:21.1]} 30...
h5 {[%clk 0:00:32.3]} 31. Bd4 {[%clk 0:01:17.5]} 31... Bxd4 {[%clk 0:00:30.7]}
32. Qxd4 {[%clk 0:01:18.4]} 32... Qe8 {[%clk 0:00:29.2]} 33. a4 {[%clk
0:01:06.5]} 33... Qe7 {[%clk 0:00:20.7]} 34. Kh2 {[%clk 0:00:57.2]} 34... Kh7
{[%clk 0:00:19.1]} 35. a5 {[%clk 0:00:52.4]} 35... bxa5 {[%clk 0:00:07.3]} 36.
Qxa7 {[%clk 0:00:51.8]} 36... Qe5 {[%clk 0:00:05.7]} 37. Nd3 {[%clk 0:00:43.4]}
37... Qd6 {[%clk 0:00:03.8]} 38. Nc5 {[%clk 0:00:29.8]} 38... Kg7 {[%clk
0:00:02.7]} 39. Qxa5 {[%clk 0:00:24.6]} 39... Nd5 {[%clk 0:00:02.2]} 40. Qa1+
{[%clk 0:00:18.1]} 40... Kh7 {[%clk 0:00:02.1]} 41. Qd4 {[%clk 0:00:17.1]} 41...
Qc6 {[%clk 0:00:01]} 42. Ne4 {[%clk 0:00:15.7]} 42... Kg8 {[%clk 0:00:01.5]} 43.
Qxd5 {[%clk 0:00:15.5]} 1-0

[Event "Early-Titled-Tuesday-Blitz-June-18-2024"]
[Site "Chess.com"]
[Date "2024.06.18"]
[Round "4"]
[White "Hamisandwich"]
[Black "tptagain"]
[Result "0-1"]
[WhiteElo "2764"]
[BlackElo "2942"]
[TimeControl "180+1"]
[EndTime "8:41:29 PDT"]
[Termination "tptagain won on time"]

1. e4 {[%clk 0:02:56.5]} 1... c5 {[%clk 0:02:59.8]} 2. Nf3 {[%clk 0:02:55.6]}
2... Nc6 {[%clk 0:03:00.4]} 3. Bb5 {[%clk 0:02:49.1]} 3... e6 {[%clk 0:03:00.2]}
4. O-O {[%clk 0:02:47.3]} 4... Nge7 {[%clk 0:03:00.2]} 5. Re1 {[%clk 0:02:46.5]}
5... a6 {[%clk 0:03:00.5]} 6. Bf1 {[%clk 0:02:46.7]} 6... b6 {[%clk 0:03:01.1]}
7. c3 {[%clk 0:02:41.4]} 7... d5 {[%clk 0:03:01.1]} 8. exd5 {[%clk 0:02:31.6]}
8... Nxd5 {[%clk 0:03:02]} 9. d4 {[%clk 0:02:25.4]} 9... cxd4 {[%clk 0:03:02.9]}
10. Nxd4 {[%clk 0:02:26.1]} 10... Bb7 {[%clk 0:03:03.3]} 11. Nxc6 {[%clk
0:02:20.6]} 11... Bxc6 {[%clk 0:03:03.6]} 12. Qd4 {[%clk 0:02:20.2]} 12... Qf6
{[%clk 0:02:44.7]} 13. Qxf6 {[%clk 0:02:14.2]} 13... gxf6 {[%clk 0:02:38.5]} 14.
Nd2 {[%clk 0:02:09.7]} 14... h5 {[%clk 0:02:24.6]} 15. Ne4 {[%clk 0:02:03.6]}
15... Be7 {[%clk 0:02:23.4]} 16. a3 {[%clk 0:01:54.7]} 16... f5 {[%clk
0:02:21.3]} 17. Ng5 {[%clk 0:01:45.7]} 17... h4 {[%clk 0:02:18.2]} 18. h3 {[%clk
0:01:28.7]} 18... Rg8 {[%clk 0:02:15.5]} 19. Nf3 {[%clk 0:01:20.3]} 19... Bf6
{[%clk 0:02:14.6]} 20. Nd4 {[%clk 0:01:11.5]} 20... Bxd4 {[%clk 0:02:08.5]} 21.
cxd4 {[%clk 0:01:12.4]} 21... Bb5 {[%clk 0:02:05.3]} 22. Bd2 {[%clk 0:00:46.3]}
22... Bxf1 {[%clk 0:02:01.5]} 23. Kxf1 {[%clk 0:00:47.2]} 23... Kd7 {[%clk
0:01:59.7]} 24. Rac1 {[%clk 0:00:41.3]} 24... Rac8 {[%clk 0:01:58.7]} 25. Rxc8
{[%clk 0:00:36.3]} 25... Kxc8 {[%clk 0:01:58.9]} 26. Rc1+ {[%clk 0:00:37]} 26...
Kd7 {[%clk 0:01:59.2]} 27. f3 {[%clk 0:00:33]} 27... f6 {[%clk 0:01:53.4]} 28.
Re1 {[%clk 0:00:31.7]} 28... Ne7 {[%clk 0:01:42.6]} 29. Rc1 {[%clk 0:00:29.1]}
29... Nc6 {[%clk 0:01:41.4]} 30. Be1 {[%clk 0:00:27.7]} 30... Rh8 {[%clk
0:01:37.3]} 31. Bf2 {[%clk 0:00:26.6]} 31... Kd6 {[%clk 0:01:37.3]} 32. d5
{[%clk 0:00:25.4]} 32... Kxd5 {[%clk 0:01:36.1]} 33. Bxb6 {[%clk 0:00:26.1]}
33... Rb8 {[%clk 0:01:32]} 34. Bf2 {[%clk 0:00:23.3]} 34... Rh8 {[%clk
0:01:16.2]} 35. Rc5+ {[%clk 0:00:16.6]} 35... Kd6 {[%clk 0:01:16.1]} 36. Rc4
{[%clk 0:00:17.5]} 36... e5 {[%clk 0:01:06.2]} 37. Rxh4 {[%clk 0:00:16.8]} 37...
Rb8 {[%clk 0:01:05.5]} 38. b4 {[%clk 0:00:17.2]} 38... f4 {[%clk 0:01:04.8]} 39.
Rh6 {[%clk 0:00:15.3]} 39... Ke6 {[%clk 0:01:05.3]} 40. Bh4 {[%clk 0:00:14.5]}
40... Rf8 {[%clk 0:01:05.9]} 41. Rh7 {[%clk 0:00:10.7]} 41... Ne7 {[%clk
0:01:06.1]} 42. Bf2 {[%clk 0:00:08.9]} 42... Rd8 {[%clk 0:01:04.2]} 43. Bc5
{[%clk 0:00:09.1]} 43... Nf5 {[%clk 0:01:03.9]} 44. Ra7 {[%clk 0:00:08.5]} 44...
Rd2 {[%clk 0:00:51.4]} 45. Rxa6+ {[%clk 0:00:08.2]} 45... Kf7 {[%clk 0:00:52.1]}
46. b5 {[%clk 0:00:07]} 46... Ng3+ {[%clk 0:00:48.2]} 47. Ke1 {[%clk 0:00:07.1]}
47... Rxg2 {[%clk 0:00:48.3]} 48. b6 {[%clk 0:00:06.1]} 48... Rb2 {[%clk
0:00:48.3]} 49. Bb4 {[%clk 0:00:06]} 49... e4 {[%clk 0:00:46.8]} 50. Ra7+ {[%clk
0:00:03]} 50... Kg6 {[%clk 0:00:46.9]} 51. b7 {[%clk 0:00:02.7]} 51... exf3
{[%clk 0:00:47.4]} 52. Bc5 {[%clk 0:00:02]} 52... Ne4 {[%clk 0:00:45.2]} 53. Bd4
{[%clk 0:00:02.1]} 53... f2+ {[%clk 0:00:45.6]} 54. Bxf2 {[%clk 0:00:01.5]}
54... Nxf2 {[%clk 0:00:46.5]} 55. a4 {[%clk 0:00:01.1]} 55... Ne4 {[%clk
0:00:43.2]} 56. a5 {[%clk 0:00:01.2]} 56... f3 {[%clk 0:00:43.6]} 0-1

[Event "Early-Titled-Tuesday-Blitz-June-18-2024"]
[Site "Chess.com"]
[Date "2024.06.18"]
[Round "4"]
[White "bocah_sakit"]
[Black "Heliosis11"]
[Result "0-1"]
[WhiteElo "2594"]
[BlackElo "2453"]
[TimeControl "180+1"]
[EndTime "8:41:29 PDT"]
[Termination "Heliosis11 won on time"]

1. e4 {[%clk 0:03:00.9]} 1... e5 {[%clk 0:02:51.2]} 2. Nf3 {[%clk 0:03:00]} 2...
Nc6 {[%clk 0:02:51.8]} 3. Bb5 {[%clk 0:02:59.9]} 3... a6 {[%clk 0:02:51.7]} 4.
Ba4 {[%clk 0:03:00]} 4... Nf6 {[%clk 0:02:52.4]} 5. O-O {[%clk 0:03:00.5]} 5...
b5 {[%clk 0:02:52.9]} 6. Bb3 {[%clk 0:03:00.4]} 6... Bc5 {[%clk 0:02:53.6]} 7.
a4 {[%clk 0:03:00.7]} 7... Rb8 {[%clk 0:02:54.3]} 8. c3 {[%clk 0:03:00.1]} 8...
d6 {[%clk 0:02:54.7]} 9. d4 {[%clk 0:02:59.8]} 9... Bb6 {[%clk 0:02:55.4]} 10.
a5 {[%clk 0:02:56]} 10... Ba7 {[%clk 0:02:55.1]} 11. Re1 {[%clk 0:02:54.7]}
11... O-O {[%clk 0:02:53.6]} 12. h3 {[%clk 0:02:54.5]} 12... h6 {[%clk
0:02:53.1]} 13. Be3 {[%clk 0:02:53.2]} 13... Ra8 {[%clk 0:02:53.5]} 14. Nbd2
{[%clk 0:02:49.8]} 14... Bd7 {[%clk 0:02:45.2]} 15. Nf1 {[%clk 0:02:34.3]} 15...
Qe7 {[%clk 0:02:32.8]} 16. Ng3 {[%clk 0:02:28.5]} 16... Rfe8 {[%clk 0:02:07.4]}
17. dxe5 {[%clk 0:02:00.4]} 17... Nxe5 {[%clk 0:02:00.9]} 18. Nd4 {[%clk
0:01:58.8]} 18... Qf8 {[%clk 0:01:21]} 19. Ngf5 {[%clk 0:01:07.5]} 19... c5
{[%clk 0:01:12.9]} 20. Nf3 {[%clk 0:00:55.7]} 20... Bxf5 {[%clk 0:01:09.6]} 21.
exf5 {[%clk 0:00:54]} 21... c4 {[%clk 0:00:53.1]} 22. Bc2 {[%clk 0:00:51]} 22...
Qe7 {[%clk 0:00:47.2]} 23. Nxe5 {[%clk 0:00:36.1]} 23... dxe5 {[%clk 0:00:44.2]}
24. Qf3 {[%clk 0:00:34.3]} 24... Bxe3 {[%clk 0:00:41.6]} 25. Rxe3 {[%clk
0:00:35.2]} 25... Rad8 {[%clk 0:00:42.1]} 26. Qe2 {[%clk 0:00:33.4]} 26... Nd5
{[%clk 0:00:38.3]} 27. Rg3 {[%clk 0:00:32.6]} 27... Nf4 {[%clk 0:00:37.3]} 28.
Qe4 {[%clk 0:00:28.6]} 28... Qf6 {[%clk 0:00:37.3]} 29. Qe3 {[%clk 0:00:21.4]}
29... Rd6 {[%clk 0:00:27.4]} 30. Rd1 {[%clk 0:00:20.8]} 30... Rxd1+ {[%clk
0:00:26.2]} 31. Bxd1 {[%clk 0:00:21.7]} 31... Rd8 {[%clk 0:00:26.8]} 32. Bc2
{[%clk 0:00:22]} 32... Qd6 {[%clk 0:00:11.5]} 33. Qe4 {[%clk 0:00:21]} 33... f6
{[%clk 0:00:11.8]} 34. Qb7 {[%clk 0:00:20.6]} 34... Rd7 {[%clk 0:00:11.9]} 35.
Qc8+ {[%clk 0:00:21.2]} 35... Kh7 {[%clk 0:00:12.6]} 36. Kh2 {[%clk 0:00:19.7]}
36... Ne2 {[%clk 0:00:12.1]} 37. Rg4 {[%clk 0:00:15.2]} 37... Qd2 {[%clk
0:00:11.3]} 38. Be4 {[%clk 0:00:12.3]} 38... Qe1 {[%clk 0:00:09.9]} 0-1